[Event "Titled Tuesday Blitz April 26 Early 2022"]
[White "Johnson, Ben"]
[Black "Taboas Rodriguez, Daniel"]
[WhiteFideId "2010917"]
[BlackFideId "2208466"]
[WhiteElo "2168"]
[BlackElo "2429"]
[Result "0-1"]
[Round "01"]
[TimeControl "180+1"]
[Date "2022.04.26"]
[WhiteClock "0:00:10"]
[BlackClock "0:00:30"]

1. Nf3 {[%clk 0:03:00]}  Nf6 {[%clk 0:02:59]} 2. c4 {[%clk 0:03:00]}  g6 {[%clk 0:02:59]} 3. b3 {[%clk 0:03:00]}  Bg7 {[%clk 0:03:00]} 4. Bb2 {[%clk 0:03:00]}  O-O {[%clk 0:03:00]} 5. g3 {[%clk 0:03:00]}  b6 {[%clk 0:03:00]} 6. Bg2 {[%clk 0:03:00]}  Bb7 {[%clk 0:03:01]} 7. O-O {[%clk 0:02:59]}  c5 {[%clk 0:03:01]} 8. d4 {[%clk 0:02:57]}  Ne4 {[%clk 0:02:56]} 9. Nbd2 {[%clk 0:02:53]}  d5 {[%clk 0:02:54]} 10. cxd5 {[%clk 0:02:46]}  Bxd5 {[%clk 0:02:47]} 11. Nxe4 {[%clk 0:02:24]}  Bxe4 {[%clk 0:02:47]} 12. e3 {[%clk 0:01:49]}  Nc6 {[%clk 0:02:46]} 13. Rc1 {[%clk 0:01:34]}  Qd5 {[%clk 0:02:44]} 14. Nh4 {[%clk 0:01:29]}  Bxg2 {[%clk 0:02:43]} 15. Nxg2 {[%clk 0:01:30]}  cxd4 {[%clk 0:02:43]} 16. Nf4 {[%clk 0:01:30]}  Qd6 {[%clk 0:02:42]} 17. Rc4 {[%clk 0:00:56]}  Rfd8 {[%clk 0:02:27]} 18. Qc1 {[%clk 0:00:48]}  Na5 {[%clk 0:02:11]} 19. Ra4 {[%clk 0:00:37]}  dxe3 {[%clk 0:02:07]} 20. Bxg7 {[%clk 0:00:37]}  exf2+ {[%clk 0:02:05]} 21. Rxf2 {[%clk 0:00:35]}  Kxg7 {[%clk 0:02:05]} 22. Qb2+ {[%clk 0:00:33]}  Kg8 {[%clk 0:02:02]} 23. h4 {[%clk 0:00:32]}  Rac8 {[%clk 0:01:57]} 24. Kh2 {[%clk 0:00:31]}  Qd1 {[%clk 0:01:53]} 25. h5 {[%clk 0:00:29]}  Rc1 {[%clk 0:01:52]} 26. Kh3 {[%clk 0:00:25]}  Qh1+ {[%clk 0:01:24]} 27. Rh2 {[%clk 0:00:25]}  Qf1+ {[%clk 0:01:23]} 28. Rg2 {[%clk 0:00:24]}  g5 {[%clk 0:01:13]} 29. Qe5 {[%clk 0:00:21]}  gxf4 {[%clk 0:00:59]} 30. gxf4+ {[%clk 0:00:18]}  Qxg2+ {[%clk 0:00:56]} 31. Kxg2 {[%clk 0:00:19]}  Rd2+ {[%clk 0:00:54]} 32. Kf3 {[%clk 0:00:19]}  Rf1+ {[%clk 0:00:48]} 33. Kg3 {[%clk 0:00:18]}  Rg1+ {[%clk 0:00:45]} 34. Kf3 {[%clk 0:00:18]}  Nc6 {[%clk 0:00:34]} 35. Qc7 {[%clk 0:00:16]}  Nd4+ {[%clk 0:00:31]} 36. Rxd4 {[%clk 0:00:13]}  Rxd4 {[%clk 0:00:32]} 37. Qc8+ {[%clk 0:00:13]}  Kg7 {[%clk 0:00:31]} 38. Qc3 {[%clk 0:00:12]}  Rd1 {[%clk 0:00:31]} 39. Ke3 {[%clk 0:00:13]}  Kh6 {[%clk 0:00:31]} 40. Qc2 {[%clk 0:00:10]}  R1d3+ {[%clk 0:00:30]} 0-1


[Site "https://www.chess.com"]

[Event "Titled Tuesday Blitz April 26 Early 2022"]
[White "Jones, Daniel"]
[Black "Hasangatin, Ramil"]
[WhiteFideId "2019655"]
[BlackFideId "4122160"]
[WhiteElo "2342"]
[BlackElo "2375"]
[Result "0-1"]
[Round "01"]
[TimeControl "180+1"]
[Date "2022.04.26"]
[WhiteClock "0:00:15"]
[BlackClock "0:00:42"]

1. f4 {[%clk 0:02:59]}  d5 {[%clk 0:02:50]} 2. Nf3 {[%clk 0:02:57]}  g6 {[%clk 0:02:50]} 3. g3 {[%clk 0:02:57]}  c6 {[%clk 0:02:47]} 4. Bg2 {[%clk 0:02:58]}  Qb6 {[%clk 0:02:45]} 5. d3 {[%clk 0:02:56]}  Bg7 {[%clk 0:02:44]} 6. c3 {[%clk 0:02:53]}  h5 {[%clk 0:02:44]} 7. h3 {[%clk 0:02:52]}  Nh6 {[%clk 0:02:44]} 8. e4 {[%clk 0:02:47]}  a5 {[%clk 0:02:35]} 9. Qe2 {[%clk 0:02:46]}  dxe4 {[%clk 0:02:31]} 10. dxe4 {[%clk 0:02:45]}  Qa6 {[%clk 0:02:32]} 11. Qc2 {[%clk 0:02:41]}  Nd7 {[%clk 0:02:22]} 12. Be3 {[%clk 0:02:40]}  a4 {[%clk 0:02:19]} 13. Nbd2 {[%clk 0:02:37]}  b5 {[%clk 0:02:19]} 14. O-O {[%clk 0:02:31]}  Bb7 {[%clk 0:02:18]} 15. Ng5 {[%clk 0:02:27]}  c5 {[%clk 0:02:15]} 16. b4 {[%clk 0:02:09]}  cxb4 {[%clk 0:02:12]} 17. cxb4 {[%clk 0:02:08]}  Bxa1 {[%clk 0:02:11]} 18. Rxa1 {[%clk 0:02:08]}  f6 {[%clk 0:02:12]} 19. Ngf3 {[%clk 0:02:01]}  Nf7 {[%clk 0:02:07]} 20. Nh4 {[%clk 0:01:48]}  Rg8 {[%clk 0:02:06]} 21. Ndf3 {[%clk 0:01:49]}  Qc6 {[%clk 0:02:00]} 22. Qf2 {[%clk 0:01:38]}  Qc4 {[%clk 0:01:53]} 23. a3 {[%clk 0:01:29]}  Rc8 {[%clk 0:01:38]} 24. Nd2 {[%clk 0:01:23]}  Qc3 {[%clk 0:01:38]} 25. Bd4 {[%clk 0:01:22]}  Qc2 {[%clk 0:01:35]} 26. Re1 {[%clk 0:01:15]}  e5 {[%clk 0:01:32]} 27. fxe5 {[%clk 0:01:06]}  Nfxe5 {[%clk 0:01:33]} 28. Re2 {[%clk 0:00:49]}  Nd3 {[%clk 0:01:27]} 29. Qe3 {[%clk 0:00:45]}  N7e5 {[%clk 0:01:20]} 30. Ndf3 {[%clk 0:00:39]}  Qc1+ {[%clk 0:01:19]} 31. Kh2 {[%clk 0:00:39]}  Qxe3 {[%clk 0:01:17]} 32. Rxe3 {[%clk 0:00:33]}  Rc2 {[%clk 0:01:11]} 33. Nxe5 {[%clk 0:00:31]}  Nxe5 {[%clk 0:01:10]} 34. Kg1 {[%clk 0:00:21]}  Kf7 {[%clk 0:01:07]} 35. Bxe5 {[%clk 0:00:18]}  fxe5 {[%clk 0:01:07]} 36. Rf3+ {[%clk 0:00:19]}  Kg7 {[%clk 0:01:07]} 37. Rd3 {[%clk 0:00:17]}  Rf8 {[%clk 0:00:57]} 38. Rd6 {[%clk 0:00:15]}  Rf6 {[%clk 0:00:55]} 39. Rd7+ {[%clk 0:00:16]}  Rf7 {[%clk 0:00:56]} 40. Rd6 {[%clk 0:00:17]}  Rc6 {[%clk 0:00:47]} 41. Rd8 {[%clk 0:00:14]}  Rc1+ {[%clk 0:00:47]} 42. Kh2 {[%clk 0:00:14]}  Rc2 {[%clk 0:00:46]} 43. Rd6 {[%clk 0:00:14]}  Bxe4 {[%clk 0:00:44]} 44. Kg1 {[%clk 0:00:14]}  Bxg2 {[%clk 0:00:41]} 45. Nxg2 {[%clk 0:00:15]}  Rc1+ {[%clk 0:00:41]} 46. Kh2 {[%clk 0:00:15]}  Rf2 {[%clk 0:00:42]} 47. Rd7+ {[%clk 0:00:15]}  Kh6 {[%clk 0:00:42]} 0-1


[Site "https://www.chess.com"]

[Event "Titled Tuesday Blitz April 26 Early 2022"]
[White "Karas, Marek"]
[Black "Pranav, V"]
[WhiteFideId "14928558"]
[BlackFideId "25060783"]
[WhiteElo "2271"]
[BlackElo "2349"]
[Result "0-1"]
[Round "01"]
[TimeControl "180+1"]
[Date "2022.04.26"]
[WhiteClock "0:00:22"]
[BlackClock "0:00:53"]

1. Nf3 {[%clk 0:02:56]}  Nf6 {[%clk 0:02:59]} 2. g3 {[%clk 0:02:56]}  d5 {[%clk 0:02:59]} 3. Bg2 {[%clk 0:02:57]}  c6 {[%clk 0:03:00]} 4. O-O {[%clk 0:02:58]}  Bg4 {[%clk 0:03:00]} 5. d4 {[%clk 0:02:58]}  Nbd7 {[%clk 0:03:01]} 6. c4 {[%clk 0:02:56]}  e6 {[%clk 0:03:01]} 7. cxd5 {[%clk 0:02:57]}  exd5 {[%clk 0:03:00]} 8. Nc3 {[%clk 0:02:58]}  Bd6 {[%clk 0:03:00]} 9. Bf4 {[%clk 0:02:56]}  Bxf4 {[%clk 0:02:58]} 10. gxf4 {[%clk 0:02:56]}  O-O {[%clk 0:02:59]} 11. e3 {[%clk 0:02:53]}  Ne4 {[%clk 0:02:55]} 12. Qc2 {[%clk 0:02:53]}  Nd6 {[%clk 0:02:52]} 13. Nd2 {[%clk 0:02:52]}  Re8 {[%clk 0:02:52]} 14. Rfe1 {[%clk 0:02:51]}  Qh4 {[%clk 0:02:51]} 15. Nf1 {[%clk 0:02:47]}  Bf5 {[%clk 0:02:45]} 16. Qe2 {[%clk 0:02:43]}  Nf6 {[%clk 0:02:44]} 17. Qf3 {[%clk 0:02:42]}  Re6 {[%clk 0:02:41]} 18. Qg3 {[%clk 0:02:39]}  Qh6 {[%clk 0:02:40]} 19. Qg5 {[%clk 0:02:36]}  Qg6 {[%clk 0:02:27]} 20. Ng3 {[%clk 0:02:28]}  h6 {[%clk 0:02:26]} 21. Qxg6 {[%clk 0:02:26]}  Bxg6 {[%clk 0:02:27]} 22. Bh3 {[%clk 0:02:21]}  Re7 {[%clk 0:02:26]} 23. Rac1 {[%clk 0:02:18]}  Bd3 {[%clk 0:02:25]} 24. Bf1 {[%clk 0:02:17]}  Bxf1 {[%clk 0:02:24]} 25. Kxf1 {[%clk 0:02:16]}  h5 {[%clk 0:02:25]} 26. Rb1 {[%clk 0:02:12]}  h4 {[%clk 0:02:20]} 27. Nge2 {[%clk 0:02:12]}  Nc4 {[%clk 0:02:13]} 28. Red1 {[%clk 0:02:08]}  Rae8 {[%clk 0:02:09]} 29. b3 {[%clk 0:02:05]}  Nd6 {[%clk 0:02:09]} 30. Ng1 {[%clk 0:02:04]}  Nfe4 {[%clk 0:02:09]} 31. Nxe4 {[%clk 0:02:03]}  Nxe4 {[%clk 0:02:10]} 32. Rbc1 {[%clk 0:02:02]}  f6 {[%clk 0:02:10]} 33. Nf3 {[%clk 0:02:01]}  g5 {[%clk 0:02:10]} 34. fxg5 {[%clk 0:01:55]}  fxg5 {[%clk 0:02:11]} 35. Ne5 {[%clk 0:01:47]}  Rf8 {[%clk 0:02:10]} 36. Rc2 {[%clk 0:01:46]}  Kg7 {[%clk 0:02:10]} 37. Kg2 {[%clk 0:01:37]}  Nd6 {[%clk 0:02:08]} 38. f3 {[%clk 0:01:28]}  Nf5 {[%clk 0:02:07]} 39. Re2 {[%clk 0:01:26]}  Re6 {[%clk 0:02:06]} 40. Rde1 {[%clk 0:01:14]}  a5 {[%clk 0:02:01]} 41. Ng4 {[%clk 0:01:13]}  Ra8 {[%clk 0:01:40]} 42. Ne5 {[%clk 0:00:53]}  a4 {[%clk 0:01:32]} 43. b4 {[%clk 0:00:47]}  a3 {[%clk 0:01:29]} 44. Rb1 {[%clk 0:00:46]}  Ra4 {[%clk 0:01:29]} 45. b5 {[%clk 0:00:46]}  c5 {[%clk 0:01:25]} 46. Rd1 {[%clk 0:00:39]}  cxd4 {[%clk 0:01:15]} 47. exd4 {[%clk 0:00:40]}  Rxd4 {[%clk 0:01:11]} 48. Rde1 {[%clk 0:00:38]}  Rb4 {[%clk 0:01:08]} 49. Ng4 {[%clk 0:00:27]}  Rxe2+ {[%clk 0:01:07]} 50. Rxe2 {[%clk 0:00:28]}  Rxb5 {[%clk 0:01:07]} 51. Re5 {[%clk 0:00:28]}  Nd4 {[%clk 0:00:56]} 52. Rxg5+ {[%clk 0:00:28]}  Kf7 {[%clk 0:00:57]} 53. Rh5 {[%clk 0:00:26]}  Rb2+ {[%clk 0:00:55]} 54. Kh3 {[%clk 0:00:25]}  Ke6 {[%clk 0:00:56]} 55. Rh7 {[%clk 0:00:23]}  Nxf3 {[%clk 0:00:54]} 56. Ne3 {[%clk 0:00:22]}  Ng5+ {[%clk 0:00:53]} 0-1


[Site "https://www.chess.com"]

[Event "Titled Tuesday Blitz April 26 Early 2022"]
[White "Karolczuk, Iwo"]
[Black "Pourkashiyan, Atousa"]
[WhiteFideId "21816972"]
[BlackFideId "12502014"]
[WhiteElo "2277"]
[BlackElo "2247"]
[Result "1-0"]
[Round "01"]
[TimeControl "180+1"]
[Date "2022.04.26"]
[WhiteClock "0:00:06"]
[BlackClock "0:00:11"]

1. d4 {[%clk 0:02:58]}  Nf6 {[%clk 0:02:58]} 2. c4 {[%clk 0:02:56]}  e6 {[%clk 0:02:58]} 3. g3 {[%clk 0:02:56]}  d5 {[%clk 0:02:57]} 4. Nf3 {[%clk 0:02:55]}  Be7 {[%clk 0:02:56]} 5. Bg2 {[%clk 0:02:55]}  O-O {[%clk 0:02:56]} 6. O-O {[%clk 0:02:55]}  dxc4 {[%clk 0:02:56]} 7. Qc2 {[%clk 0:02:53]}  a6 {[%clk 0:02:54]} 8. a4 {[%clk 0:02:53]}  Bd7 {[%clk 0:02:50]} 9. Qxc4 {[%clk 0:02:50]}  Bc6 {[%clk 0:02:45]} 10. Bg5 {[%clk 0:02:49]}  Nbd7 {[%clk 0:02:28]} 11. Nc3 {[%clk 0:02:39]}  Bxf3 {[%clk 0:02:16]} 12. Bxf3 {[%clk 0:02:35]}  c6 {[%clk 0:02:15]} 13. Rfd1 {[%clk 0:02:26]}  a5 {[%clk 0:02:14]} 14. e4 {[%clk 0:02:19]}  h6 {[%clk 0:02:13]} 15. Be3 {[%clk 0:02:18]}  Bb4 {[%clk 0:02:08]} 16. Rac1 {[%clk 0:02:02]}  Rc8 {[%clk 0:02:00]} 17. Qe2 {[%clk 0:01:55]}  Qe7 {[%clk 0:01:59]} 18. h4 {[%clk 0:01:51]}  Rfd8 {[%clk 0:01:59]} 19. Kg2 {[%clk 0:01:47]}  e5 {[%clk 0:01:48]} 20. Kg1 {[%clk 0:01:16]}  exd4 {[%clk 0:01:46]} 21. Bxd4 {[%clk 0:01:16]}  Bc5 {[%clk 0:01:33]} 22. Bxf6 {[%clk 0:01:11]}  Nxf6 {[%clk 0:01:32]} 23. e5 {[%clk 0:01:10]}  Nd5 {[%clk 0:01:18]} 24. Bxd5 {[%clk 0:00:59]}  cxd5 {[%clk 0:01:18]} 25. Nxd5 {[%clk 0:00:38]}  Rxd5 {[%clk 0:01:16]} 26. Rxd5 {[%clk 0:00:28]}  Bxf2+ {[%clk 0:01:17]} 27. Kxf2 {[%clk 0:00:28]}  Rxc1 {[%clk 0:01:17]} 28. Qd2 {[%clk 0:00:23]}  Qc7 {[%clk 0:01:09]} 29. Qd3 {[%clk 0:00:16]}  Qc2+ {[%clk 0:01:01]} 30. Kf3 {[%clk 0:00:16]}  Qc6 {[%clk 0:00:52]} 31. Ke2 {[%clk 0:00:14]}  g6 {[%clk 0:00:44]} 32. h5 {[%clk 0:00:14]}  Qc2+ {[%clk 0:00:39]} 33. Kf3 {[%clk 0:00:11]}  Qh2 {[%clk 0:00:23]} 34. hxg6 {[%clk 0:00:09]}  Qh1+ {[%clk 0:00:22]} 35. Kg4 {[%clk 0:00:06]}  Re1 {[%clk 0:00:11]} 36. gxf7+ {[%clk 0:00:05]}  Kg7 {[%clk 0:00:11]} 37. f8=Q+ {[%clk 0:00:05]}  Kxf8 {[%clk 0:00:11]} 38. Rd8+ {[%clk 0:00:06]}  Kg7 {[%clk 0:00:11]} 39. Qd7+ {[%clk 0:00:06]}  Kg6 {[%clk 0:00:11]} 40. Rg8# {[%clk 0:00:06]} 1-0


[Site "https://www.chess.com"]

[Event "Titled Tuesday Blitz April 26 Early 2022"]
[White "Khusenkhojaev, Muhammad"]
[Black "Samarth, J Rao"]
[WhiteFideId "14700247"]
[BlackFideId "46652370"]
[WhiteElo "2180"]
[BlackElo "1514"]
[Result "1-0"]
[Round "01"]
[TimeControl "180+1"]
[Date "2022.04.26"]
[WhiteClock "0:01:09"]
[BlackClock "0:00:26"]

1. e4 {[%clk 0:02:56]}  c5 {[%clk 0:02:57]} 2. Nf3 {[%clk 0:02:56]}  d6 {[%clk 0:02:56]} 3. d4 {[%clk 0:02:56]}  cxd4 {[%clk 0:02:57]} 4. Nxd4 {[%clk 0:02:56]}  Nf6 {[%clk 0:02:55]} 5. Nc3 {[%clk 0:02:57]}  a6 {[%clk 0:02:53]} 6. Bg5 {[%clk 0:02:57]}  e6 {[%clk 0:02:50]} 7. f4 {[%clk 0:02:57]}  Be7 {[%clk 0:02:49]} 8. Qf3 {[%clk 0:02:57]}  Qc7 {[%clk 0:02:18]} 9. O-O-O {[%clk 0:02:56]}  Nbd7 {[%clk 0:02:11]} 10. g4 {[%clk 0:02:56]}  b5 {[%clk 0:02:07]} 11. Bxf6 {[%clk 0:02:55]}  Nxf6 {[%clk 0:02:07]} 12. g5 {[%clk 0:02:55]}  Nd7 {[%clk 0:02:06]} 13. f5 {[%clk 0:02:56]}  O-O {[%clk 0:02:02]} 14. Rg1 {[%clk 0:02:48]}  b4 {[%clk 0:01:56]} 15. Nce2 {[%clk 0:02:31]}  e5 {[%clk 0:01:54]} 16. f6 {[%clk 0:02:31]}  exd4 {[%clk 0:01:54]} 17. fxe7 {[%clk 0:02:30]}  Re8 {[%clk 0:01:54]} 18. Nxd4 {[%clk 0:02:26]}  Ne5 {[%clk 0:01:47]} 19. Qf4 {[%clk 0:02:22]}  Qc5 {[%clk 0:01:46]} 20. Be2 {[%clk 0:02:15]}  Rxe7 {[%clk 0:01:39]} 21. Kb1 {[%clk 0:02:13]}  a5 {[%clk 0:01:33]} 22. Nf5 {[%clk 0:02:03]}  Bxf5 {[%clk 0:01:31]} 23. exf5 {[%clk 0:02:04]}  Rc7 {[%clk 0:01:32]} 24. Rc1 {[%clk 0:02:03]}  a4 {[%clk 0:01:27]} 25. g6 {[%clk 0:01:56]}  fxg6 {[%clk 0:01:15]} 26. fxg6 {[%clk 0:01:56]}  h6 {[%clk 0:01:14]} 27. Bg4 {[%clk 0:01:36]}  a3 {[%clk 0:01:12]} 28. Be6+ {[%clk 0:01:33]}  Kh8 {[%clk 0:01:11]} 29. Rgf1 {[%clk 0:01:31]}  Nxg6 {[%clk 0:01:10]} 30. Qe4 {[%clk 0:01:29]}  d5 {[%clk 0:00:34]} 31. Qxg6 {[%clk 0:01:25]}  axb2 {[%clk 0:00:32]} 32. Rcd1 {[%clk 0:01:11]}  Rxa2 {[%clk 0:00:28]} 33. Qe8+ {[%clk 0:01:09]}  Kh7 {[%clk 0:00:26]} 34. Bg8+ {[%clk 0:01:09]} 1-0


[Site "https://www.chess.com"]

[Event "Titled Tuesday Blitz April 26 Early 2022"]
[White "Korchmar, Vasiliy"]
[Black "Rengifo Blancas, Renzo Jhonathan"]
[WhiteFideId "24131750"]
[BlackFideId "3807185"]
[WhiteElo "2370"]
[BlackElo "2058"]
[Result "0-1"]
[Round "01"]
[TimeControl "180+1"]
[Date "2022.04.26"]
[WhiteClock "0:00:08"]
[BlackClock "0:00:16"]

1. e4 {[%clk 0:02:58]}  c6 {[%clk 0:02:50]} 2. d4 {[%clk 0:02:57]}  d5 {[%clk 0:02:49]} 3. e5 {[%clk 0:02:57]}  Bf5 {[%clk 0:02:42]} 4. c4 {[%clk 0:02:57]}  e6 {[%clk 0:02:42]} 5. Nc3 {[%clk 0:02:56]}  h5 {[%clk 0:02:30]} 6. h4 {[%clk 0:02:34]}  Nh6 {[%clk 0:02:17]} 7. Nge2 {[%clk 0:02:33]}  Be7 {[%clk 0:02:17]} 8. Ng3 {[%clk 0:02:25]}  Bxh4 {[%clk 0:01:44]} 9. Bxh6 {[%clk 0:02:22]}  Rxh6 {[%clk 0:01:27]} 10. Nxf5 {[%clk 0:02:21]}  exf5 {[%clk 0:01:28]} 11. cxd5 {[%clk 0:02:20]}  Qg5 {[%clk 0:01:21]} 12. Qf3 {[%clk 0:01:58]}  Qg4 {[%clk 0:01:16]} 13. Qxg4 {[%clk 0:01:27]}  hxg4 {[%clk 0:01:14]} 14. Bd3 {[%clk 0:01:28]}  g6 {[%clk 0:01:05]} 15. Ke2 {[%clk 0:01:17]}  Nd7 {[%clk 0:01:02]} 16. dxc6 {[%clk 0:01:07]}  bxc6 {[%clk 0:01:02]} 17. g3 {[%clk 0:01:01]}  Bg5 {[%clk 0:01:02]} 18. Rxh6 {[%clk 0:01:02]}  Bxh6 {[%clk 0:01:03]} 19. Rh1 {[%clk 0:01:02]}  Bg7 {[%clk 0:01:00]} 20. Rh7 {[%clk 0:01:02]}  Kf8 {[%clk 0:01:00]} 21. Rh1 {[%clk 0:00:55]}  Rb8 {[%clk 0:00:58]} 22. b3 {[%clk 0:00:54]}  c5 {[%clk 0:00:55]} 23. dxc5 {[%clk 0:00:51]}  Bxe5 {[%clk 0:00:54]} 24. Na4 {[%clk 0:00:49]}  Bd4 {[%clk 0:00:46]} 25. c6 {[%clk 0:00:44]}  Re8+ {[%clk 0:00:42]} 26. Kd2 {[%clk 0:00:43]}  Ne5 {[%clk 0:00:42]} 27. Rh8+ {[%clk 0:00:39]}  Ke7 {[%clk 0:00:41]} 28. Rxe8+ {[%clk 0:00:40]}  Kxe8 {[%clk 0:00:42]} 29. c7 {[%clk 0:00:40]}  Kd7 {[%clk 0:00:41]} 30. Bc4 {[%clk 0:00:28]}  Nxc4+ {[%clk 0:00:36]} 31. bxc4 {[%clk 0:00:29]}  Bxf2 {[%clk 0:00:36]} 32. Nc3 {[%clk 0:00:23]}  Bxg3 {[%clk 0:00:32]} 33. Nd5 {[%clk 0:00:22]}  Bxc7 {[%clk 0:00:31]} 34. Ke2 {[%clk 0:00:22]}  Be5 {[%clk 0:00:28]} 35. Nb4 {[%clk 0:00:19]}  f4 {[%clk 0:00:22]} 36. Nd3 {[%clk 0:00:20]}  Bc7 {[%clk 0:00:22]} 37. Nc5+ {[%clk 0:00:15]}  Kc6 {[%clk 0:00:21]} 38. Ne4 {[%clk 0:00:16]}  f3+ {[%clk 0:00:20]} 39. Kf2 {[%clk 0:00:16]}  f5 {[%clk 0:00:20]} 40. Nf6 {[%clk 0:00:10]}  Bb6+ {[%clk 0:00:20]} 41. Kf1 {[%clk 0:00:10]}  g3 {[%clk 0:00:18]} 42. Nd5 {[%clk 0:00:09]}  g2+ {[%clk 0:00:18]} 43. Ke1 {[%clk 0:00:09]}  g1=Q+ {[%clk 0:00:18]} 44. Kd2 {[%clk 0:00:10]}  Qd4+ {[%clk 0:00:18]} 45. Kc2 {[%clk 0:00:10]}  Qxc4+ {[%clk 0:00:18]} 46. Nc3 {[%clk 0:00:11]}  f2 {[%clk 0:00:18]} 47. Kb2 {[%clk 0:00:10]}  f1=Q {[%clk 0:00:17]} 48. Kc2 {[%clk 0:00:09]}  Qfd3+ {[%clk 0:00:15]} 49. Kb2 {[%clk 0:00:08]}  Qcxc3# {[%clk 0:00:16]} 0-1


[Site "https://www.chess.com"]

[Event "Titled Tuesday Blitz April 26 Early 2022"]
[White "Kotepalli, Sai Nirupama"]
[Black "Maksimovic, Bojan"]
[WhiteFideId "5039444"]
[BlackFideId "14408120"]
[WhiteElo "2391"]
[BlackElo "2448"]
[Result "0-1"]
[Round "01"]
[TimeControl "180+1"]
[Date "2022.04.26"]
[WhiteClock "0:00:22"]
[BlackClock "0:01:50"]

1. e4 {[%clk 0:02:45]}  e5 {[%clk 0:02:59]} 2. Nf3 {[%clk 0:02:44]}  Nf6 {[%clk 0:03:00]} 3. d3 {[%clk 0:02:42]}  Nc6 {[%clk 0:02:57]} 4. g3 {[%clk 0:02:39]}  d5 {[%clk 0:02:57]} 5. Nbd2 {[%clk 0:02:36]}  Bc5 {[%clk 0:02:54]} 6. Bg2 {[%clk 0:02:33]}  O-O {[%clk 0:02:53]} 7. O-O {[%clk 0:02:32]}  Re8 {[%clk 0:02:53]} 8. Qe2 {[%clk 0:02:28]}  h6 {[%clk 0:02:49]} 9. c3 {[%clk 0:02:26]}  a5 {[%clk 0:02:48]} 10. a4 {[%clk 0:02:19]}  Bg4 {[%clk 0:02:47]} 11. h3 {[%clk 0:02:14]}  Be6 {[%clk 0:02:47]} 12. Kh2 {[%clk 0:01:59]}  Qd7 {[%clk 0:02:43]} 13. Nh4 {[%clk 0:01:46]}  Rad8 {[%clk 0:02:41]} 14. exd5 {[%clk 0:01:39]}  Bxd5 {[%clk 0:02:41]} 15. Ne4 {[%clk 0:01:33]}  Be7 {[%clk 0:02:40]} 16. Nf3 {[%clk 0:01:29]}  Qe6 {[%clk 0:02:37]} 17. Re1 {[%clk 0:01:16]}  Nxe4 {[%clk 0:02:34]} 18. dxe4 {[%clk 0:01:14]}  Bc4 {[%clk 0:02:34]} 19. Qe3 {[%clk 0:00:59]}  Rd3 {[%clk 0:02:22]} 20. Qe2 {[%clk 0:00:59]}  Red8 {[%clk 0:02:22]} 21. Qc2 {[%clk 0:00:52]}  Bb3 {[%clk 0:02:11]} 22. Qb1 {[%clk 0:00:50]}  Rd1 {[%clk 0:02:07]} 23. Rxd1 {[%clk 0:00:46]}  Rxd1 {[%clk 0:02:07]} 24. Nd2 {[%clk 0:00:44]}  Bg5 {[%clk 0:02:06]} 25. Bf3 {[%clk 0:00:33]}  Re1 {[%clk 0:01:50]} 26. Nxb3 {[%clk 0:00:25]}  Qxb3 {[%clk 0:01:50]} 27. Ra3 {[%clk 0:00:22]}  Qb6 {[%clk 0:01:50]} 0-1


[Site "https://www.chess.com"]

[Event "Titled Tuesday Blitz April 26 Early 2022"]
[White "Kozak, Antoni"]
[Black "Silvestre, Christian"]
[WhiteFideId "21832030"]
[BlackFideId "30956269"]
[WhiteElo "2236"]
[BlackElo "2302"]
[Result "1-0"]
[Round "01"]
[TimeControl "180+1"]
[Date "2022.04.26"]
[WhiteClock "0:01:03"]
[BlackClock "0:00:30"]

1. Nf3 {[%clk 0:02:59]}  Nf6 {[%clk 0:02:58]} 2. c4 {[%clk 0:02:58]}  d6 {[%clk 0:02:58]} 3. g3 {[%clk 0:02:58]}  g6 {[%clk 0:02:58]} 4. Bg2 {[%clk 0:02:59]}  Bg7 {[%clk 0:02:59]} 5. O-O {[%clk 0:02:59]}  O-O {[%clk 0:02:59]} 6. Nc3 {[%clk 0:03:00]}  c6 {[%clk 0:02:59]} 7. b4 {[%clk 0:02:59]}  e5 {[%clk 0:02:56]} 8. b5 {[%clk 0:02:56]}  e4 {[%clk 0:02:51]} 9. Ne1 {[%clk 0:02:53]}  d5 {[%clk 0:02:48]} 10. Ba3 {[%clk 0:02:44]}  Re8 {[%clk 0:02:44]} 11. bxc6 {[%clk 0:02:42]}  bxc6 {[%clk 0:02:41]} 12. cxd5 {[%clk 0:02:42]}  cxd5 {[%clk 0:02:40]} 13. Nc2 {[%clk 0:02:43]}  Ba6 {[%clk 0:02:22]} 14. Nd4 {[%clk 0:02:37]}  Qb6 {[%clk 0:02:10]} 15. Qa4 {[%clk 0:02:34]}  Bc4 {[%clk 0:01:50]} 16. e3 {[%clk 0:02:17]}  Bxf1 {[%clk 0:01:38]} 17. Nxd5 {[%clk 0:02:13]}  Qd8 {[%clk 0:01:36]} 18. Nxf6+ {[%clk 0:02:08]}  Bxf6 {[%clk 0:01:34]} 19. Rxf1 {[%clk 0:02:09]}  Nd7 {[%clk 0:01:27]} 20. Nb5 {[%clk 0:02:06]}  Nb6 {[%clk 0:01:22]} 21. Qb3 {[%clk 0:01:56]}  Qxd2 {[%clk 0:01:04]} 22. Nd6 {[%clk 0:01:48]}  Re6 {[%clk 0:00:49]} 23. Nxe4 {[%clk 0:01:41]}  Qd8 {[%clk 0:00:47]} 24. Rd1 {[%clk 0:01:37]}  Qc8 {[%clk 0:00:41]} 25. Nxf6+ {[%clk 0:01:28]}  Rxf6 {[%clk 0:00:42]} 26. Bxa8 {[%clk 0:01:18]}  Qxa8 {[%clk 0:00:43]} 27. Be7 {[%clk 0:01:18]}  Kg7 {[%clk 0:00:34]} 28. Qc3 {[%clk 0:01:14]}  Qc6 {[%clk 0:00:32]} 29. Bxf6+ {[%clk 0:01:09]}  Qxf6 {[%clk 0:00:33]} 30. Qxf6+ {[%clk 0:01:07]}  Kxf6 {[%clk 0:00:34]} 31. Rc1 {[%clk 0:01:05]}  Nd5 {[%clk 0:00:33]} 32. Rc6+ {[%clk 0:01:03]}  Ke5 {[%clk 0:00:30]} 33. Ra6 {[%clk 0:01:03]} 1-0


[Site "https://www.chess.com"]